{"text_format":"1","workbook":"xlsx","n_sheets":3,"sheets":["jjjj-mm-mm","Papiervorlage","Anleitung"],"not_rendered":{"charts":0,"images":0,"macros":1,"external_links":0,"defined_names":2,"comments":1,"pivot_tables":0},"unopened":[],"bounds":{"document_bytes":16777216,"sheet_cells":100000,"rows_first":2000,"rows_last":500,"rows_between":2000,"halvings":0,"cell_chars":16384,"cell_head_chars":4096},"cells_cut":0,"cells_raw":0,"read":"whole","date_system":"1900"}

{"sheet":"jjjj-mm-mm","index":0,"n_rows":36,"n_cols":10,"rows_kept":36,"cut":false,"hidden":false,"merged":[[6,8,6,9]]}
["TSV Schleißheim",null,"Übungsleiter-Stundenabrechnung",null,null,null,"Name"]
[null,null,null,null,null,null,"Straße"]
["Abrechungszeitr.",null,null,"rot umrahmte Zellen nicht verändern!",null,null,"PLZ/Ort","85764 Oberschleissheim"]
[null,null,null,null,null,null,"Abteilung","Turnen"]
[null,null,null,null,null,"Vergütung pro Übungseinheit     €",null,null,7,"(Normalvergütung)"]
[]
["Datum","Uhrzeit",null,"Übungseinheiten","Übungsort/ Kurs","Vergütung","Teiln.-Zahl","Betrag","Unterschrift"]
[null,"von","bis","(á 45 Min.)"]
["2013-06-27","18:30:00","19:45:00",{"$f":"IF(A9<>\"\",(HOUR(C9-B9)*60+MINUTE(C9-B9))/45,\"\")","v":1.6666666666666667},"Musterhalle/ Muster-Kurs",{"$f":"IF(A9<>\"\",$I$5,\"\")","v":7},10,{"$f":"IF(A9<>\"\",F9*D9,\"\")","v":11.666666666666668}]
[null,null,null,{"$f":"IF(A10<>\"\",(HOUR(C10-B10)*60+MINUTE(C10-B10))/45,\"\")","v":""},null,{"$f":"IF(A10<>\"\",$I$5,\"\")","v":""},null,{"$f":"IF(A10<>\"\",F10*D10,\"\")","v":""}]
[null,null,null,"",null,"",null,""]
[null,null,null,"",null,"",null,""]
[null,null,null,"",null,"",null,""]
[null,null,null,"",null,"",null,""]
[null,null,null,"",null,"",null,""]
[null,null,null,"",null,"",null,""]
[null,null,null,"",null,"",null,""]
[null,null,null,"",null,"",null,""]
[null,null,null,"",null,"",null,""]
[null,null,null,"",null,"",null,""]
[null,null,null,"",null,"",null,""]
[null,null,null,"",null,"",null,""]
[null,null,null,"",null,"",null,""]
[null,null,null,"",null,"",null,""]
[null,null,null,"",null,"",null,""]
[null,null,null,"",null,"",null,""]
[null,null,null,"",null,"",null,""]
[null,null,null,"",null,"",null,""]
[null,null,null,"",null,"",null,""]
[null,null,null,"",null,"",null,""]
["Summe",null,null,{"$f":"IF(SUM(D9:D30)>0,SUM(D9:D30),\" \")","v":1.6666666666666667},null,null,null,{"$f":"IF(SUM(H9:H30)>0,SUM(H9:H30),\" \")","v":11.666666666666668},"Auszahlungsbetrag wird gerundet!"]
[]
[null,null,null,null,"Prüfzahl",{"$f":"H31/I5","v":1.6666666666666667},"An den ÜL wurde überwiesen/bar ausgezahlt:"]
["Für die Richtigkeit:",null,null,null,null,null,"€",null,"Beleg-Nr."]
[null,null,null,null,null,null,"Oberschleißheim, den "]
["(Abteilungsleiter)",null,null,null,null,null,"Kassier"]

{"sheet":"Papiervorlage","index":1,"n_rows":35,"n_cols":10,"rows_kept":35,"cut":false,"hidden":false,"merged":[[6,8,6,9]]}
["TSV Schleißheim",null,"Übungsleiter-Stundenabrechnung",null,null,null,"Name"]
[null,null,null,null,null,null,"Straße"]
[null,null,null,null,null,null,"PLZ/Ort"]
[null,null,null,null,null,null,"Abteilung"]
[null,null,null,null,null,"Vergütung pro Stunde= 45Min!     €",null,null,null,"(Normalvergütung)"]
[]
["Datum","Uhrzeit",null,"Übungseinheiten","Übungsort/ Kurs","Vergütung","Teiln.-Zahl","Betrag","Unterschrift"]
[null,"von","bis","(á 45 Min.)"]
[]
[]
[]
[]
[]
[]
[]
[]
[]
[]
[]
[]
[]
[]
[]
[]
[]
[]
[]
[]
[]
["Summen"]
[]
[null,null,null,null,null,null,"An den ÜL wurde überwiesen/bar ausgezahlt:"]
["Für die Richtigkeit:",null,null,null,null,null,"€",null,"Beleg-Nr."]
[null,null,null,null,null,null,"Oberschleißheim, den "]
["(Abteilungsleiter)",null,null,null,null,null,"Kassier"]

{"sheet":"Anleitung","index":2,"n_rows":0,"n_cols":0,"rows_kept":0,"cut":false,"hidden":false,"merged":[]}